bitfinex-derivatives/quotes_ETHF0:USTF0_20250701
["timestamp","ask_amount","ask_price","bid_price","bid_amount"]
[1751353085088,4.06132358,2461.4,2461.3,6.05637]
[1751353085290,4.06130358,2461.5,2461.4,0.81234]
[1751353085497,0.81232,2461.5,2461.4,1.3297]
[1751353085888,0.81232,2461.5,2461.4,2.14204]
[1751353086388,0.81232,2461.5,2461.4,1.3297]
[1751353087095,0.81232,2461.5,2461.4,2.14204]
[1751353087300,0.81232,2461.5,2461.4,1.3297]
[1751353089199,0.81234,2461.4,2461.3,3.9143]
[1751353089396,0.81234,2461.4,2461.3,4.72667]
[1751353089601,0.81234,2461.4,2461.3,3.2078]
[1751353090902,0.81237,2461.3,2461.2,11.451]
[1751353091107,3.13616153,2461.3,2461.2,11.451]
[1751353094500,4.52656153,2461.3,2461.2,11.451]
[1751353094904,0.81247,2461.0,2460.9,3.2078]
[1751353096108,0.81247,2461.0,2460.9,3.9005]
[1751353097310,0.81247,2461.0,2460.9,4.713]
[1751353097503,0.81247,2461.0,2460.9,3.9005]
[1751353099911,0.81247,2461.0,2460.9,0.6927]
[1751353100208,0.81247,2461.0,2460.9,3.9005]
[1751353104814,0.81247,2461.0,2460.9,4.713]
[1751353105007,0.81247,2461.0,2460.9,3.9005]
[1751353106312,0.81247,2461.0,2460.9,0.6927]
[1751353107912,0.81254,2460.8,2460.7,1.3861]
[1751353108216,0.81254,2460.8,2460.7,11.448]
[1751353108512,0.81257,2460.7,2460.6,3.2078]
[1751353108711,3.13636153,2460.7,2460.6,3.2078]
[1751353109612,0.81267,2460.4,2460.3,1.21901827]
[1751353109914,0.81267,2460.4,2460.3,0.658]
[1751353120421,0.81267,2460.4,2460.3,1.4707]
[1751353121313,0.81266,2460.5,2460.4,0.81264]
[1751353121523,0.81267,2460.4,2460.3,1.47068]
[1751353122722,0.81267,2460.4,2460.3,3.79447153]
[1751353124418,0.81265,2460.5,2460.4,0.81262]
[1751353124623,0.81265,2460.5,2460.4,2.21322]
[1751353124821,0.81262,2460.6,2460.5,0.8126]
[1751353125024,0.81262,2460.6,2460.5,2.2132]
[1751353126625,0.81262,2460.6,2460.5,1.4006]
[1751353127220,0.81262,2460.6,2460.5,2.21323]
[1751353135938,0.81262,2460.6,2460.5,2.88813]
[1751353136637,0.81262,2460.6,2460.5,2.0755]
[1751353138535,0.81262,2460.6,2460.5,0.6749]
[1751353141140,0.81267,2460.4,2460.3,1.21901827]
[1751353141341,3.13646153,2460.4,2460.3,1.21901827]
[1751353142235,0.8127,2460.3,2460.2,16.68754827]
[1751353143634,0.8127,2460.3,2460.2,5.23954827]
[1751353145038,0.81269,2460.4,2460.3,0.81267]
[1751353146445,0.8127,2460.3,2460.2,6.66442827]
[1751353153852,0.8127,2460.3,2460.2,5.23952827]
[1751353154656,0.8127,2460.3,2460.2,2.03172827]
[1751353155964,0.8127,2460.3,2460.2,2.68492827]
[1751353157956,0.8127,2460.3,2460.2,1.46591]
[1751353159460,0.8127,2460.3,2460.2,0.6532]
[1751353159960,0.8127,2460.3,2460.2,1.46593]
[1751353160161,0.8127,2460.3,2460.2,3.08826198]
[1751353160363,0.8127,2460.4,2460.3,0.81267]
[1751353160563,0.8127,2460.4,2460.3,8.51768359]
[1751353160765,0.8127,2460.4,2460.3,6.89459153]
[1751353160960,0.8127,2460.4,2460.3,5.78819358]
[1751353162065,0.8127,2460.4,2460.3,6.60089358]
[1751353162459,0.8127,2460.4,2460.3,5.3835]
[1751353162659,0.8127,2460.4,2460.3,6.60107615]
[1751353162861,0.8127,2460.4,2460.3,6.60107614]
[1751353163062,0.8127,2460.4,2460.3,5.3835]
[1751353163964,0.8127,2460.4,2460.3,2.1757]
[1751353165266,0.8127,2460.4,2460.3,3.79879206]
[1751353167370,0.8127,2460.4,2460.3,2.1757]
[1751353167565,0.8127,2460.4,2460.3,3.79879206]
[1751353167766,0.8127,2460.4,2460.3,5.42687316]
[1751353171672,0.8127,2460.4,2460.3,4.61417316]
[1751353172373,0.8127,2460.4,2460.3,5.02149138]
[1751353172569,0.8127,2460.4,2460.3,4.20879138]
[1751353173276,0.8127,2460.4,2460.3,5.02149138]
[1751353173871,0.8127,2460.4,2460.3,4.20879138]
[1751353174376,0.8127,2460.4,2460.3,1.21771028]
[1751353181987,0.8127,2460.3,2460.2,5.07871028]
[1751353190394,0.8127,2460.3,2460.2,3.861]
[1751353190596,0.8127,2460.3,2460.2,4.67373]
[1751353190796,0.8127,2460.3,2460.2,9.25360316]
[1751353191094,0.81269,2460.4,2460.3,0.81265]
[1751353191294,0.81269,2460.4,2460.3,3.38278935]
[1751353191496,0.81269,2460.4,2460.3,2.16525]
[1751353191690,0.81261,2460.7,2460.6,0.8126]
[1751353191890,0.81262,2460.6,2460.5,3.13787924]
[1751353192085,0.81262,2460.6,2460.5,5.18997924]
[1751353192289,0.81262,2460.6,2460.5,2.0521]
[1751353192488,0.81267,2460.4,2460.3,12.6574545]
[1751353193092,0.81267,2460.4,2460.3,14.0100545]
[1751353193497,0.81267,2460.4,2460.3,14.8227545]
[1751353193696,0.81267,2460.4,2460.3,13.6053]
[1751353197501,0.81267,2460.4,2460.3,15.22839206]
[1751353198402,0.81267,2460.4,2460.3,18.43619206]
[1751353199503,0.81267,2460.4,2460.3,16.8131]
[1751353200198,0.81267,2460.4,2460.3,18.43619206]
[1751353200899,0.81267,2460.4,2460.3,20.7614713]
[1751353201100,2.03112,2461.1,2460.5,2.03159]
[1751353201401,0.81254,2460.8,2460.7,1.21706581]
[1751353201598,0.81257,2460.7,2460.6,0.6586]
[1751353201800,0.81264,2460.5,2460.4,12.65706581]
[1751353202102,0.81264,2460.5,2460.4,12.8041]
[1751353202300,0.81264,2460.5,2460.4,0.81267]
[1751353202498,0.81264,2460.5,2460.4,2.17677]
[1751353202900,0.81263,2460.6,2460.5,0.81261]
[1751353203101,0.81259,2460.7,2460.6,0.81256]
[1751353203303,0.81259,2460.7,2460.6,1.3087]
[1751353204404,0.81259,2460.7,2460.5,2.02951499]
[1751353204405,0.8126,2460.6,2460.5,1.21690499]
[1751353205106,2.32527924,2460.7,2460.4,1.21690499]
[1751353205107,0.81264,2460.5,2460.4,1.21690499]
[1751353205505,0.81264,2460.5,2460.4,2.02957499]
[1751353206209,0.81264,2460.5,2460.4,1.90210499]
[1751353207407,3.13791924,2460.5,2460.4,1.90210499]
[1751353207605,0.81267,2460.4,2460.3,1.21690499]
[1751353207806,0.8127,2460.3,2460.2,3.12102206]
[1751353208597,0.8127,2460.3,2460.2,4.48912206]
[1751353209504,0.8127,2460.3,2460.2,3.67639206]
[1751353210404,0.8127,2460.3,2460.2,4.480787]
[1751353210606,0.8127,2460.3,2460.2,5.293517]
[1751353211005,0.8127,2460.3,2460.2,2.0533]
[1751353211909,0.8127,2460.3,2460.2,2.86603]
[1751353212313,0.8127,2460.3,2460.2,2.0533]
[1751353213715,0.8127,2460.3,2460.2,5.2611]
[1751353213908,0.8127,2460.3,2460.2,6.07383]
[1751353214813,0.8127,2460.3,2460.2,8.501317]
[1751353216016,0.8127,2460.3,2460.2,5.2611]
[1751353216912,0.8127,2460.3,2460.2,6.88404451]
[1751353217812,0.8127,2460.3,2460.2,3.67624451]
[1751353218019,0.8127,2460.3,2460.2,7.69677451]
[1751353218214,0.8127,2460.3,2460.2,10.02205375]
[1751353220823,0.8127,2460.3,2460.2,9.20932375]
[1751353221922,0.8127,2460.3,2460.2,6.88404451]
[1751353226026,0.8127,2460.3,2460.2,5.51594451]
[1751353227721,0.8127,2460.3,2460.2,5.11095756]
[1751353227925,0.8127,2460.3,2460.2,4.42575756]
[1751353230722,0.8127,2460.3,2460.2,3.2078]
[1751353231423,0.81273,2460.2,2460.1,2.43570451]
[1751353231624,0.81273,2460.2,2460.1,5.64350451]
[1751353232725,0.81269,2460.4,2460.3,0.81267]
[1751353232924,0.81269,2460.4,2460.3,3.13794924]
[1751353233423,0.81269,2460.4,2460.3,5.88524924]
[1751353234326,0.81269,2460.4,2460.3,2.7473]
[1751353234534,0.81269,2460.4,2460.3,3.96519665]
[1751353234830,0.81269,2460.4,2460.3,1.92979665]
[1751353239823,0.81269,2460.4,2460.3,2.74249665]
[1751353240028,0.81269,2460.4,2460.3,1.92979665]
[1751353240430,5.1012,2460.5,2460.3,1.92979665]
[1751353240732,0.81252,2460.9,2460.8,0.81251]
[1751353240934,0.81252,2460.9,2460.8,3.13778924]
[1751353241133,3.24898358,2461.1,2461.0,0.81247]
[1751353241332,6.09209947,2461.4,2461.2,0.8124]
[1751353241333,0.8124,2461.3,2461.2,0.8124]
[1751353241631,0.8124,2461.3,2461.2,5.53307924]
[1751353241839,4.3715,2461.8,2461.3,0.81235]
[1751353241840,3.24898358,2461.5,2461.3,0.81235]
[1751353242134,0.8123,2461.5,2461.4,2.1253]
[1751353243233,0.8123,2461.5,2461.4,2.93764]
[1751353243435,0.8123,2461.5,2461.4,2.1253]
[1751353243835,0.8123,2461.5,2461.4,2.93764]
[1751353244028,0.8123,2461.5,2461.4,2.1253]
[1751353245535,0.81237,2461.3,2461.2,4.42569665]
[1751353245730,3.13764924,2461.3,2461.2,4.42569665]
[1751353245926,3.13764924,2461.3,2461.2,3.2078]
[1751353247733,0.81244,2461.1,2461.0,1.21789665]
[1751353248031,6.34551924,2461.1,2461.0,1.21789665]
[1751353248334,0.81247,2461.0,2460.9,2.84126724]
[1751353248643,0.8125,2460.9,2460.8,1.21789665]
[1751353250333,0.81254,2460.8,2460.7,1.89629665]
[1751353250836,0.81254,2460.8,2460.7,0.6784]
[1751353251531,0.81254,2460.8,2460.7,2.101]
[1751353255741,0.8126,2460.6,2460.5,73.1898]
[1751353256638,0.81264,2460.5,2460.4,0.6683]
[1751353257140,0.81264,2460.5,2460.4,3.80624924]
[1751353258142,0.81263,2460.6,2460.5,0.81262]
[1751353258335,0.81263,2460.6,2460.5,2.83202]
[1751353260636,3.2078,2460.7,2460.6,0.8126]
[1751353260841,3.2078,2460.7,2460.6,2.1672]
[1751353261332,0.81259,2460.7,2460.6,2.1672]
[1751353261544,0.81255,2460.8,2460.7,0.81254]
[1751353261744,0.81255,2460.8,2460.7,2.19104]
[1751353263340,0.81252,2460.9,2460.8,0.81251]
[1751353263546,0.81252,2460.9,2460.8,3.13778924]
[1751353264846,0.81252,2460.9,2460.8,2.32527924]
[1751353265049,0.81254,2460.8,2460.7,1.3785]
[1751353265346,0.81254,2460.8,2460.7,2.19105]
[1751353266644,0.8126,2460.6,2460.5,15.3156]
[1751353267845,0.8126,2460.6,2460.5,16.12824]
[1751353268841,0.8126,2460.6,2460.5,17.46154]
[1751353269650,0.8126,2460.6,2460.5,16.6489]
[1751353269850,0.8126,2460.6,2460.5,17.46154]
[1751353270046,0.9493,2460.7,2460.6,0.8126]
[1751353270351,0.94927,2460.7,2460.6,4.47117924]
[1751353270548,0.1367,2460.7,2460.6,4.47117924]
[1751353270952,0.1367,2460.7,2460.6,2.1459]
[1751353272848,0.94927,2460.7,2460.6,2.1459]
[1751353273049,0.1367,2460.7,2460.6,2.1459]
[1751353273249,0.1367,2460.7,2460.6,3.36379665]
[1751353275361,0.94927,2460.7,2460.6,3.36379665]
[1751353275760,0.1367,2460.7,2460.6,3.36379665]
[1751353276060,0.1367,2460.7,2460.6,4.04149665]
[1751353276462,0.94927,2460.7,2460.6,4.04149665]
[1751353276661,0.1367,2460.7,2460.6,4.04149665]
[1751353276861,0.94927,2460.7,2460.6,4.04149665]
[1751353277261,0.1367,2460.7,2460.6,4.04149665]
[1751353277863,0.1367,2460.7,2460.6,2.8236]
[1751353278463,0.1367,2460.7,2460.6,4.44697059]
[1751353286066,0.1367,2460.7,2460.6,2.8236]
[1751353286265,3.2509,2460.8,2460.7,3.13784924]
[1751353286573,3.2509,2460.8,2460.7,30.76359104]
[1751353289464,3.2509,2460.8,2460.7,31.57023624]
[1751353289865,6.38871924,2460.8,2460.7,2.427487]
[1751353290171,0.81257,2460.7,2460.6,2.427487]
[1751353290366,0.8126,2460.6,2460.5,1.62258708]
[1751353290566,2.1689,2460.6,2460.5,1.62258708]
[1751353290872,0.8126,2460.6,2460.5,1.62258708]
[1751353291381,0.8126,2460.6,2460.5,2.427487]
[1751353292283,0.8126,2460.6,2460.5,1.21689257]
[1751353292772,0.8126,2460.6,2460.5,1.88129257]
[1751353293482,0.8126,2460.6,2460.5,2.69393257]
[1751353293683,0.8126,2460.6,2460.5,1.88129257]
[1751353293885,0.8126,2460.6,2460.5,2.69393257]
[1751353294187,0.8126,2460.6,2460.5,1.88129257]
[1751353298288,0.8126,2460.6,2460.5,2.69393257]
[1751353300584,0.8126,2460.6,2460.5,27.31293257]
[1751353300890,4.0638,2460.6,2460.5,27.31293257]
[1751353302690,3.2512,2460.6,2460.5,31.03791181]
[1751353303090,3.2512,2460.6,2460.5,29.82101924]
[1751353303695,4.0638,2460.6,2460.5,29.82101924]
[1751353304897,4.0638,2460.6,2460.5,30.63090266]
[1751353305098,4.0638,2460.6,2460.5,37.67852342]
[1751353305997,4.0638,2460.6,2460.5,38.49116342]
[1751353306200,4.0638,2460.6,2460.5,37.67852342]
[1751353306392,4.0638,2460.6,2460.5,38.49116342]
[1751353306796,4.0638,2460.6,2460.5,37.67852342]
[1751353308000,4.0638,2460.6,2460.5,13.06052342]
[1751353308202,4.0638,2460.6,2460.5,37.27677943]
[1751353310800,4.0638,2460.6,2460.5,25.83177943]
[1751353311000,4.0638,2460.6,2460.5,26.64441943]
[1751353311599,4.0638,2460.6,2460.5,25.83177943]
[1751353313404,4.0638,2460.6,2460.5,26.64441943]
[1751353313706,4.0638,2460.6,2460.5,25.83177943]
[1751353313901,4.0638,2460.6,2460.5,26.64441943]
[1751353314607,4.0638,2460.6,2460.5,25.83177943]
[1751353315604,4.0638,2460.6,2460.5,26.64441943]
[1751353316108,3.2512,2460.6,2460.5,26.64441943]
[1751353316309,3.2512,2460.6,2460.5,29.06651924]
[1751353316509,3.2512,2460.6,2460.5,30.68904266]
[1751353317113,3.2512,2460.6,2460.5,29.06651924]
[1751353317311,3.2512,2460.6,2460.5,30.68904266]
[1751353318506,4.0638,2460.6,2460.5,30.68904266]
[1751353318709,4.0638,2460.6,2460.5,29.06651924]
[1751353318906,3.2512,2460.6,2460.5,29.06651924]
[1751353319108,4.0638,2460.6,2460.5,29.06651924]
[1751353319309,4.0638,2460.6,2460.5,31.49400624]
[1751353319810,3.2512,2460.6,2460.5,31.49400624]
[1751353324015,3.2512,2460.6,2460.5,34.70180624]
[1751353325123,3.2512,2460.6,2460.5,32.27431924]
[1751353327518,3.2078,2461.1,2461.0,0.81247]
[1751353327720,4.02012,2461.5,2461.1,2.0311]
[1751353328023,4.02012,2461.5,2461.4,0.81234]
[1751353328222,4.02012,2461.5,2461.4,24.606]
[1751353331427,0.81231,2461.5,2461.4,27.8138]
[1751353331626,0.81231,2461.5,2461.4,24.606]
[1751353333529,0.81234,2461.4,2461.3,2.02730057]
[1751353333824,0.81234,2461.4,2461.3,38.06630057]
[1751353334029,0.81233,2461.5,2461.3,38.06630057]
[1751353334325,0.81234,2461.4,2461.3,38.06630057]
[1751353334524,0.81234,2461.4,2461.3,36.85135]
[1751353335028,0.81234,2461.4,2461.3,36.039]
[1751353336428,0.8124,2461.2,2461.1,1.21495057]
[1751353336630,0.8125,2460.9,2460.8,1.21495057]
[1751353337029,0.8125,2460.9,2460.8,1.89735057]
[1751353337633,0.8125,2461.0,2460.8,25.3274]
[1751353337831,3.8741,2461.2,2460.8,28.15312]
[1751353338033,0.81249,2461.0,2460.9,11.437]
[1751353338325,0.8125,2460.9,2460.8,2.6956]
[1751353338528,0.8125,2460.9,2460.8,1.3815]
[1751353338730,0.8125,2460.9,2460.8,36.7684]
[1751353339325,0.8125,2460.9,2460.8,0.6824]
[1751353339531,0.8125,2460.9,2460.8,36.7684]
[1751353341836,0.8125,2460.9,2460.8,37.58094]
[1751353342531,0.8125,2460.9,2460.8,36.7684]
[1751353343533,0.8125,2460.9,2460.8,36.086]
[1751353343939,0.81257,2460.7,2460.6,2.71944057]
[1751353344139,0.81257,2460.7,2460.6,38.81344057]
[1751353344437,0.81256,2460.8,2460.7,0.81255]
[1751353344739,0.81253,2460.9,2460.8,0.81251]
[1751353345040,0.81254,2460.8,2460.7,39.23182924]
[1751353345240,0.81254,2460.8,2460.7,40.64172924]
[1751353345736,5.6994,2461.2,2460.7,39.82917924]
[1751353345938,0.81252,2460.9,2460.8,0.81253]
[1751353346242,0.81252,2460.9,2460.8,24.637]
[1751353348038,0.81252,2460.9,2460.8,25.44954]
[1751353349141,0.81252,2460.9,2460.8,24.637]
[1751353349341,0.81252,2460.9,2460.8,25.44954]
[1751353349541,0.81249,2461.0,2460.8,25.44954]
[1751353349839,0.81249,2461.0,2460.8,25.44951]
[1751353350039,0.81249,2461.0,2460.8,24.637]
[1751353350741,0.81249,2461.0,2460.9,0.712]
[1751353351440,0.81249,2461.0,2460.9,1.5245]
[1751353351641,4.02025,2461.1,2461.0,0.81247]
[1751353352537,3.2078,2461.1,2461.0,0.81247]
[1751353352742,0.6663,2461.2,2461.1,0.81244]
[1751353352944,0.81241,2461.2,2461.0,26.95127924]
[1751353353141,0.81241,2461.2,2461.1,0.81241]
[1751353354143,0.81244,2461.1,2461.0,24.624]
[1751353354345,0.81247,2461.0,2460.9,1.21495057]
[1751353354646,0.81247,2461.0,2460.9,38.11045057]
[1751353354838,0.81247,2461.0,2460.9,11.453]
[1751353355151,3.13774924,2461.0,2460.9,11.453]
[1751353355542,3.13774924,2461.0,2460.9,12.2655]
[1751353355843,3.13774924,2461.0,2460.9,11.453]
[1751353356544,3.13774924,2461.0,2460.9,12.2655]
[1751353356741,3.13774924,2461.0,2460.9,11.453]
[1751353358347,3.13774924,2461.0,2460.9,12.2655]
[1751353358644,3.13774924,2461.0,2460.9,11.453]
[1751353359043,3.13774924,2461.0,2460.9,12.2655]
[1751353359242,3.13774924,2461.0,2460.9,11.453]
[1751353361448,0.81247,2461.0,2460.9,11.453]
[1751353361644,4.02025,2461.1,2460.9,11.453]
[1751353361847,4.02025,2461.1,2461.0,0.81247]
[1751353362146,4.02025,2461.1,2461.0,2.91697]
[1751353362346,4.02024,2461.1,2461.0,5.24224924]
[1751353362944,4.02024,2461.1,2461.0,2.91697]
[1751353363143,4.02024,2461.1,2461.0,27.54097]
[1751353365952,0.81244,2461.1,2461.0,27.54097]
[1751353366252,0.81244,2461.1,2461.0,28.75592057]
[1751353368149,0.92333,2461.2,2461.1,0.81244]
[1751353368456,0.81244,2461.1,2461.0,25.83895057]
[1751353369553,0.81244,2461.1,2461.0,26.65142057]
[1751353369760,0.81244,2461.1,2461.0,25.83895057]
[1751353370159,4.02024,2461.1,2461.0,25.83895057]
[1751353370365,4.02024,2461.1,2461.0,26.65142057]
[1751353370566,4.02024,2461.1,2461.0,25.83895057]
[1751353371162,6.34551924,2461.1,2461.0,37.28495057]
[1751353371960,6.34551924,2461.1,2461.0,38.09742057]
[1751353373068,6.34551924,2461.1,2461.0,37.28495057]
[1751353373568,4.02024,2461.1,2461.0,38.09742057]
[1751353373867,4.02024,2461.1,2461.0,39.50532057]
[1751353374067,4.02024,2461.1,2461.0,40.20062057]
[1751353374470,4.02024,2461.1,2461.0,39.38815057]
[1751353377570,4.02024,2461.1,2461.0,38.1732]
[1751353377759,4.02024,2461.1,2461.0,39.38869619]
[1751353378869,0.81247,2461.0,2460.9,1.92889619]
[1751353379071,0.81247,2461.0,2460.9,26.53589619]
[1751353380265,0.81247,2461.0,2460.9,1.21549619]
[1751353380472,7.32527924,2461.0,2460.7,1.62066159]
[1751353380672,0.81257,2460.7,2460.6,1.62066159]
[1751353381164,3.45997,2460.7,2460.6,1.62066159]
[1751353381361,0.8126,2460.6,2460.5,1.62066159]
[1751353381564,0.81264,2460.5,2460.4,83.147]
[1751353381872,4.02044,2460.5,2460.4,83.147]
[1751353382866,3.2078,2460.8,2460.4,83.147]
[1751353383071,0.81259,2460.7,2460.6,0.81258]
[1751353383274,0.81259,2460.7,2460.6,25.44158]
[1751353383466,0.81259,2460.7,2460.6,36.88358]
[1751353384866,4.02036,2460.8,2460.7,0.81257]
[1751353385370,4.02036,2460.8,2460.7,1.49207]
[1751353388274,3.2078,2460.8,2460.7,1.49207]
[1751353388668,4.02034,2460.8,2460.7,1.49207]
[1751353389569,3.2078,2460.8,2460.7,1.49207]
[1751353391275,3.2078,2460.8,2460.7,37.56307]
[1751353392571,3.2078,2460.8,2460.7,1.49207]
[1751353392777,3.2078,2460.8,2460.7,37.55907]
[1751353393281,3.3188,2460.8,2460.7,37.55907]
[1751353395277,0.111,2460.8,2460.7,37.55907]
[1751353395975,0.111,2460.8,2460.7,39.17973159]
[1751353396881,0.111,2460.8,2460.7,41.50501083]
[1751353397573,0.111,2460.8,2460.7,39.88434924]
[1751353397880,3.2078,2461.2,2461.1,0.81244]
[1751353398079,3.2078,2461.2,2461.1,27.76171924]
[1751353398283,0.81238,2461.3,2461.2,0.8124]
[1751353398481,0.81238,2461.3,2461.2,12.2504]
[1751353398679,0.81237,2461.4,2461.3,0.81236]
[1751353398878,0.81237,2461.4,2461.3,25.44236]
[1751353400586,0.81237,2461.4,2461.3,26.76466]
[1751353400781,0.81237,2461.4,2461.3,25.9523]
[1751353401187,0.81237,2461.3,2461.2,0.81239]
[1751353401486,0.81237,2461.3,2461.2,36.87439]
[1751353401688,0.81237,2461.3,2461.2,38.25759]
[1751353402092,0.8124,2461.2,2461.1,24.63]
[1751353402292,0.81244,2461.1,2461.0,36.87947]
[1751353402495,3.13771924,2461.1,2461.0,36.87947]
[1751353404290,0.81244,2461.1,2461.0,36.87947]
[1751353405386,0.81244,2461.1,2461.0,36.067]
[1751353407187,0.81244,2461.1,2461.0,36.87947]
[1751353410995,0.81244,2461.1,2461.0,36.87047]
[1751353413696,0.81244,2461.1,2461.0,36.058]
[1751353415397,4.02024,2461.1,2461.0,36.058]
[1751353415792,4.02024,2461.1,2461.0,36.87047]
[1751353417095,4.02024,2461.1,2461.0,36.058]
[1751353417496,4.02024,2461.1,2461.0,36.87047]
[1751353420403,4.02024,2461.1,2461.0,38.48799113]
[1751353421104,3.2078,2461.1,2461.0,42.14697037]
[1751353421293,3.2078,2461.1,2461.0,42.85637037]
[1751353422405,4.35589924,2461.7,2461.0,42.85637037]
[1751353422406,3.2078,2461.7,2461.2,2.03095]
[1751353422707,0.81234,2461.4,2461.3,26.75305]
[1751353423100,0.81237,2461.3,2461.2,0.81238]
[1751353423302,0.81243,2461.2,2461.1,0.81241]
[1751353423503,0.81243,2461.2,2461.1,36.86741]
[1751353424099,0.81244,2461.1,2461.0,5.53874338]
[1751353424305,0.81244,2461.1,2461.0,1.62154338]
[1751353424500,5.0,2461.1,2460.7,25.43455]
[1751353424701,3.13781924,2460.8,2460.7,25.43455]
[1751353424907,0.81254,2460.8,2460.7,25.43455]
[1751353425407,4.74041,2460.9,2460.8,0.81254]
[1751353426101,0.81254,2460.8,2460.7,26.08715]
[1751353427006,4.74043,2460.9,2460.8,0.81254]
[1751353429111,0.81254,2460.8,2460.7,27.50724]
[1751353429315,0.81254,2460.8,2460.7,29.9335217]
[1751353430309,0.81254,2460.8,2460.7,5.3115217]
[1751353430507,0.81254,2460.8,2460.7,36.7206]
[1751353430812,0.81254,2460.8,2460.7,37.53317]
[1751353431009,0.81254,2460.8,2460.7,1.46517]
[1751353431213,4.74044,2460.9,2460.8,0.81254]
[1751353431414,4.74044,2460.9,2460.8,2.43467314]
[1751353432309,4.74044,2460.9,2460.8,1.62213314]
[1751353432704,4.74044,2460.9,2460.8,24.621]
[1751353432905,0.81254,2460.8,2460.7,11.447]
[1751353433111,0.81254,2460.8,2460.7,36.068]
[1751353433311,0.81254,2460.8,2460.7,36.88057]
[1751353433712,0.81254,2460.8,2460.7,38.19997]
[1751353434015,4.02033,2460.9,2460.8,0.81254]
[1751353434214,4.02033,2460.9,2460.8,2.13194]
[1751353434711,3.2078,2460.9,2460.8,2.13194]
[1751353434909,0.8125,2461.0,2460.9,0.81246]
[1751353435104,0.81247,2461.1,2461.0,0.81244]
[1751353436014,0.81242,2461.2,2461.1,0.8124]
[1751353436218,0.81242,2461.2,2461.1,25.4484]
[1751353436519,0.81242,2461.2,2461.1,26.8704]
[1751353436721,0.8124,2461.3,2461.2,0.81237]
[1751353437214,0.8124,2461.3,2461.2,2.23437]
[1751353440308,0.8124,2461.2,2461.1,25.44841]
[1751353442620,0.8124,2461.3,2461.2,0.81237]
[1751353443314,3.2078,2461.4,2461.3,0.81237]
[1751353443518,4.02014,2461.4,2461.3,0.81237]
[1751353444122,4.02014,2461.4,2461.3,2.15357]
[1751353447224,0.81231,2461.6,2461.5,0.81227]
[1751353447820,4.02007,2461.7,2461.6,0.81227]
[1751353451324,4.02007,2461.7,2461.6,36.87627]
[1751353454826,0.81227,2461.7,2461.6,36.87627]
[1751353455128,3.2078,2461.8,2461.7,0.81224]
[1751353455420,4.02001,2461.8,2461.7,2.17644]
[1751353455929,3.2078,2461.8,2461.7,2.17644]
[1751353456129,3.2078,2461.8,2461.7,2.87344]
[1751353456725,4.02001,2461.8,2461.7,2.87344]
[1751353458025,3.2078,2461.8,2461.7,2.87344]
[1751353458225,3.2078,2461.8,2461.7,5.19871924]
[1751353458527,3.2078,2461.8,2461.7,2.87344]
[1751353458927,4.02001,2461.8,2461.7,2.87344]
[1751353459431,3.2078,2461.8,2461.7,2.87344]
[1751353459928,6.34528924,2461.8,2461.4,0.6833]
[1751353460121,3.2078,2461.8,2461.7,0.81224]
[1751353461130,3.2078,2461.8,2461.7,2.15304]
[1751353461833,0.81219,2461.9,2461.8,0.81221]
[1751353462035,4.01996,2462.0,2461.9,0.81217]
[1751353462733,3.2078,2462.0,2461.9,0.81217]
[1751353462928,2.03011,2462.3,2461.9,0.81217]
[1751353463130,0.81215,2462.1,2462.0,0.81212]
[1751353466030,7.56312924,2462.4,2461.9,2.0304]
[1751353466230,0.81209,2462.3,2462.2,0.81205]
[1751353469038,3.924,2462.4,2462.3,0.81204]
[1751353469039,4.73604,2462.4,2462.3,0.81204]
[1751353469240,2.75173,2462.6,2462.3,0.81204]
[1751353469241,0.709,2462.6,2462.3,0.81204]
[1751353469440,0.81193,2462.7,2462.6,0.81191]
[1751353469645,0.81198,2462.6,2462.5,0.81196]
[1751353469943,0.81193,2462.7,2462.6,0.81191]
[1751353471143,0.81193,2462.7,2462.6,4.01971]
[1751353471439,8.48601358,2463.4,2462.6,24.00393924]
[1751353471646,0.81177,2463.2,2463.1,0.81175]
[1751353471847,0.81177,2463.2,2463.1,12.25275]
[1751353472444,0.81177,2463.2,2463.1,11.441]
[1751353472650,0.81177,2463.2,2463.1,12.25278]
[1751353472849,0.81177,2463.2,2463.1,11.441]
[1751353473545,0.81177,2463.2,2463.1,12.25278]
[1751353473850,0.81177,2463.2,2463.1,11.441]
[1751353474050,0.81177,2463.2,2463.1,12.25278]
[1751353474250,0.81177,2463.2,2463.1,14.6488]
[1751353474952,0.81177,2463.2,2463.1,15.46058]
[1751353475753,0.81177,2463.2,2463.1,14.6488]
[1751353475952,0.81177,2463.2,2463.1,15.46058]
[1751353478254,0.81177,2463.2,2463.1,14.6488]
[1751353478849,0.81177,2463.2,2463.1,39.2758]
[1751353480151,0.81177,2463.2,2463.1,3.2078]
[1751353480354,0.81181,2463.0,2462.9,2.83643]
[1751353480553,0.81181,2463.0,2462.9,38.89743]
[1751353481449,0.81181,2463.0,2462.9,0.6998]
[1751353481656,0.81181,2463.0,2462.9,36.7608]
[1751353482055,0.81181,2463.0,2462.9,39.89791924]
[1751353482256,0.81181,2463.1,2463.0,0.81178]
[1751353482656,0.81181,2463.1,2463.0,2.21478]
[1751353484155,0.81177,2463.2,2463.1,0.81172]
[1751353484352,0.81177,2463.2,2463.1,28.64652]
[1751353485962,0.81177,2463.2,2463.1,27.8348]
[1751353486157,0.81177,2463.2,2463.1,39.2658]
[1751353487651,0.81177,2463.2,2463.1,27.8298]
[1751353487854,0.81177,2463.2,2463.1,27.8228]
[1751353488960,0.81177,2463.2,2463.1,28.63458]
[1751353489465,0.81177,2463.2,2463.1,4.01958]
[1751353490259,0.81177,2463.2,2463.1,28.63458]